[Event "Late-Titled-Tuesday-Blitz-May-07-2024"]
[Site "Chess.com"]
[Date "2024.05.07"]
[Round "7"]
[White "bazar-wokzal"]
[Black "Kirill_Klukin"]
[Result "0-1"]
[WhiteElo "2592"]
[BlackElo "2822"]
[TimeControl "180+1"]
[EndTime "15:16:48 PDT"]
[Termination "Kirill_Klukin won by resignation"]

1. e4 {[%clk 0:01:22]} 1... e6 {[%clk 0:02:59.5]} 2. d4 {[%clk 0:01:20.8]} 2...
d5 {[%clk 0:02:59.7]} 3. exd5 {[%clk 0:01:21.7]} 3... exd5 {[%clk 0:02:59.7]} 4.
Nf3 {[%clk 0:01:22.4]} 4... Nc6 {[%clk 0:03:00.3]} 5. Bd3 {[%clk 0:01:21.5]}
5... Bd6 {[%clk 0:03:00.7]} 6. O-O {[%clk 0:01:21.4]} 6... Nge7 {[%clk
0:03:01.3]} 7. Re1 {[%clk 0:01:19.8]} 7... O-O {[%clk 0:03:01.5]} 8. c3 {[%clk
0:01:18.7]} 8... Ng6 {[%clk 0:02:58.2]} 9. Qc2 {[%clk 0:01:15.4]} 9... Bg4
{[%clk 0:02:53.5]} 10. Nbd2 {[%clk 0:01:11.6]} 10... Qf6 {[%clk 0:02:32.1]} 11.
h3 {[%clk 0:01:09.4]} 11... Bd7 {[%clk 0:02:30.3]} 12. Nf1 {[%clk 0:01:04.2]}
12... h6 {[%clk 0:02:07.8]} 13. N3h2 {[%clk 0:00:57.5]} 13... Nf4 {[%clk
0:01:57.9]} 14. Bxf4 {[%clk 0:00:49.4]} 14... Qxf4 {[%clk 0:01:57.8]} 15. Re3
{[%clk 0:00:42.3]} 15... Rfe8 {[%clk 0:01:50.2]} 16. Rae1 {[%clk 0:00:41.1]}
16... Rxe3 {[%clk 0:01:47.6]} 17. Rxe3 {[%clk 0:00:39.4]} 17... Re8 {[%clk
0:01:44.3]} 18. g3 {[%clk 0:00:26.2]} 18... Qf6 {[%clk 0:01:37.9]} 19. Ng4
{[%clk 0:00:25.7]} 19... Qg5 {[%clk 0:01:33.3]} 20. Rxe8+ {[%clk 0:00:20.9]}
20... Bxe8 {[%clk 0:01:34.2]} 21. f4 {[%clk 0:00:20.3]} 21... Qd8 {[%clk
0:01:28.3]} 22. Qe2 {[%clk 0:00:20.2]} 22... Bd7 {[%clk 0:01:26.9]} 23. Bc2
{[%clk 0:00:18.6]} 23... Ne7 {[%clk 0:01:26.4]} 24. Nfe3 {[%clk 0:00:17.9]}
24... h5 {[%clk 0:01:11.3]} 25. Nf2 {[%clk 0:00:17.2]} 25... g6 {[%clk
0:01:11.2]} 26. Kg2 {[%clk 0:00:16]} 26... Qc8 {[%clk 0:01:07.5]} 27. g4 {[%clk
0:00:15.7]} 27... hxg4 {[%clk 0:00:55.2]} 28. Nfxg4 {[%clk 0:00:15.1]} 28... Kg7
{[%clk 0:00:50.5]} 29. Qf3 {[%clk 0:00:12.3]} 29... c6 {[%clk 0:00:48.7]} 30.
Ne5 {[%clk 0:00:12.1]} 30... Be6 {[%clk 0:00:47.2]} 31. h4 {[%clk 0:00:10.3]}
31... Nf5 {[%clk 0:00:46.6]} 32. Qf2 {[%clk 0:00:07.7]} 32... Nxe3+ {[%clk
0:00:38.4]} 33. Qxe3 {[%clk 0:00:07.9]} 33... Bf5 {[%clk 0:00:38.9]} 34. Bxf5
{[%clk 0:00:06.9]} 34... Qxf5 {[%clk 0:00:39.8]} 35. Kg3 {[%clk 0:00:07.3]}
35... Qc2 {[%clk 0:00:28.3]} 36. h5 {[%clk 0:00:05.7]} 36... gxh5 {[%clk
0:00:25.4]} 37. Nf3 {[%clk 0:00:04.9]} 37... Qf5 {[%clk 0:00:24.9]} 38. Nh4
{[%clk 0:00:04.6]} 38... Qg4+ {[%clk 0:00:25.2]} 0-1

[Event "Late-Titled-Tuesday-Blitz-May-07-2024"]
[Site "Chess.com"]
[Date "2024.05.07"]
[Round "7"]
[White "Sanan_Sjugirov"]
[Black "KaydenTroffChess"]
[Result "0-1"]
[WhiteElo "3018"]
[BlackElo "2885"]
[TimeControl "180+1"]
[EndTime "15:16:50 PDT"]
[Termination "KaydenTroffChess won on time"]

1. e4 {[%clk 0:03:00.9]} 1... c5 {[%clk 0:02:59.4]} 2. Nf3 {[%clk 0:03:00.8]}
2... g6 {[%clk 0:02:57]} 3. d4 {[%clk 0:02:56.7]} 3... cxd4 {[%clk 0:02:57.9]}
4. Nxd4 {[%clk 0:02:57.4]} 4... Bg7 {[%clk 0:02:58.1]} 5. c4 {[%clk 0:02:57.5]}
5... Qb6 {[%clk 0:02:58.7]} 6. Nb3 {[%clk 0:02:56.1]} 6... a5 {[%clk 0:02:59]}
7. Be3 {[%clk 0:02:46.7]} 7... Qb4+ {[%clk 0:02:58.8]} 8. Bd2 {[%clk 0:02:46.4]}
8... Qd6 {[%clk 0:02:59.3]} 9. Bc3 {[%clk 0:02:32.7]} 9... Qxd1+ {[%clk
0:02:57.3]} 10. Kxd1 {[%clk 0:02:33.6]} 10... Nf6 {[%clk 0:02:57.7]} 11. f3
{[%clk 0:02:31.3]} 11... Nc6 {[%clk 0:02:53.6]} 12. Na3 {[%clk 0:02:29.4]} 12...
d6 {[%clk 0:02:52.8]} 13. Nb5 {[%clk 0:02:24.8]} 13... O-O {[%clk 0:02:52.5]}
14. Be2 {[%clk 0:02:16.1]} 14... a4 {[%clk 0:02:49.5]} 15. N3d4 {[%clk
0:02:14.2]} 15... Nd7 {[%clk 0:02:44.6]} 16. Kc2 {[%clk 0:02:05.3]} 16... Nc5
{[%clk 0:02:40.3]} 17. Rad1 {[%clk 0:02:02.5]} 17... Bd7 {[%clk 0:02:28.7]} 18.
Nc7 {[%clk 0:01:56.5]} 18... Rac8 {[%clk 0:02:16.7]} 19. Nd5 {[%clk 0:01:56.4]}
19... Bxd4 {[%clk 0:02:16.1]} 20. Bxd4 {[%clk 0:01:56]} 20... Be6 {[%clk
0:02:03.2]} 21. Bc3 {[%clk 0:01:49.1]} 21... f5 {[%clk 0:02:02.4]} 22. exf5
{[%clk 0:01:40.7]} 22... Rxf5 {[%clk 0:01:55.5]} 23. Rhe1 {[%clk 0:01:33.5]}
23... b5 {[%clk 0:01:30.4]} 24. cxb5 {[%clk 0:01:33.5]} 24... Bxd5 {[%clk
0:01:30]} 25. Rxd5 {[%clk 0:01:22.6]} 25... Nb4+ {[%clk 0:01:13.7]} 26. Bxb4
{[%clk 0:01:22.3]} 26... Rxd5 {[%clk 0:01:14.1]} 27. Bc3 {[%clk 0:00:50.6]}
27... Ne6 {[%clk 0:00:53.8]} 28. Kb1 {[%clk 0:00:30.8]} 28... Nd4 {[%clk
0:00:49.8]} 29. Bxd4 {[%clk 0:00:11.8]} 29... Rxd4 {[%clk 0:00:49.5]} 30. Bd1
{[%clk 0:00:11.7]} 30... Kf8 {[%clk 0:00:41.9]} 31. a3 {[%clk 0:00:12]} 31...
Rc5 {[%clk 0:00:37]} 32. Be2 {[%clk 0:00:10.7]} 32... Rd2 {[%clk 0:00:37]} 33.
Bf1 {[%clk 0:00:07.6]} 33... Rcc2 {[%clk 0:00:36.4]} 34. Bd3 {[%clk 0:00:04.7]}
34... Rxb2+ {[%clk 0:00:34.2]} 35. Kc1 {[%clk 0:00:05.4]} 35... Rxg2 {[%clk
0:00:30]} 36. Re4 {[%clk 0:00:04.7]} 36... Rb3 {[%clk 0:00:29.6]} 37. Bc4 {[%clk
0:00:02.2]} 37... Rxa3 {[%clk 0:00:27.7]} 38. Kb1 {[%clk 0:00:02.5]} 38... Rxf3
{[%clk 0:00:21.8]} 39. b6 {[%clk 0:00:02.6]} 39... Rff2 {[%clk 0:00:22.4]} 0-1

[Event "Late-Titled-Tuesday-Blitz-May-07-2024"]
[Site "Chess.com"]
[Date "2024.05.07"]
[Round "7"]
[White "Rodalquilar"]
[Black "Durarbayli"]
[Result "1-0"]
[WhiteElo "2785"]
[BlackElo "2930"]
[TimeControl "180+1"]
[EndTime "15:16:50 PDT"]
[Termination "Rodalquilar won on time"]

1. d4 {[%clk 0:03:00.9]} 1... d5 {[%clk 0:02:57.4]} 2. Nf3 {[%clk 0:03:01]} 2...
Nf6 {[%clk 0:02:57.2]} 3. Bf4 {[%clk 0:03:01.2]} 3... c5 {[%clk 0:02:57.4]} 4.
e3 {[%clk 0:03:01.7]} 4... Nc6 {[%clk 0:02:58]} 5. Nbd2 {[%clk 0:03:00.8]} 5...
Nh5 {[%clk 0:02:52.8]} 6. Be5 {[%clk 0:02:56.2]} 6... f6 {[%clk 0:02:52.9]} 7.
Bg3 {[%clk 0:02:34.1]} 7... cxd4 {[%clk 0:02:49.5]} 8. exd4 {[%clk 0:02:33.8]}
8... Bg4 {[%clk 0:02:47.7]} 9. c3 {[%clk 0:02:30.9]} 9... e6 {[%clk 0:02:37.8]}
10. Be2 {[%clk 0:02:30.6]} 10... Nxg3 {[%clk 0:02:32.5]} 11. hxg3 {[%clk
0:02:30.5]} 11... Bd6 {[%clk 0:02:26.2]} 12. Nh4 {[%clk 0:02:30.6]} 12... Bxe2
{[%clk 0:02:24.2]} 13. Qxe2 {[%clk 0:02:31.5]} 13... Kd7 {[%clk 0:02:23.2]} 14.
Qg4 {[%clk 0:02:11.2]} 14... Qe7 {[%clk 0:01:43.1]} 15. O-O-O {[%clk 0:02:10.9]}
15... g5 {[%clk 0:01:32.9]} 16. Nhf3 {[%clk 0:02:08.6]} 16... h6 {[%clk
0:01:33.5]} 17. Ne1 {[%clk 0:01:53]} 17... Qh7 {[%clk 0:01:26.9]} 18. Nb3 {[%clk
0:01:48.2]} 18... Qe4 {[%clk 0:01:13.7]} 19. Qh5 {[%clk 0:01:30.4]} 19... Rae8
{[%clk 0:01:10.2]} 20. Nd3 {[%clk 0:01:27.1]} 20... Kc8 {[%clk 0:01:05.4]} 21.
Rhe1 {[%clk 0:01:13.4]} 21... Qxg2 {[%clk 0:00:57.7]} 22. Qf7 {[%clk 0:00:52.3]}
22... Rhf8 {[%clk 0:00:47.8]} 23. Qg7 {[%clk 0:00:52.7]} 23... Qh3 {[%clk
0:00:38.1]} 24. Nbc5 {[%clk 0:00:48.8]} 24... Bxc5 {[%clk 0:00:10.4]} 25. Nxc5
{[%clk 0:00:49.7]} 25... Nd8 {[%clk 0:00:11.1]} 26. Qd7+ {[%clk 0:00:30.8]}
26... Kb8 {[%clk 0:00:11.6]} 27. Qd6+ {[%clk 0:00:31.2]} 27... Kc8 {[%clk
0:00:12.5]} 28. Qd7+ {[%clk 0:00:24.3]} 28... Kb8 {[%clk 0:00:12.5]} 29. Qd6+
{[%clk 0:00:16.9]} 29... Kc8 {[%clk 0:00:12.9]} 30. Rxe6 {[%clk 0:00:17.5]}
30... Rxe6 {[%clk 0:00:06.1]} 31. Qxf8 {[%clk 0:00:17.9]} 31... Re2 {[%clk
0:00:05.1]} 32. Qxf6 {[%clk 0:00:11.7]} 32... Qg2 {[%clk 0:00:02.8]} 33. Qf5+
{[%clk 0:00:09.7]} 33... Kb8 {[%clk 0:00:03.4]} 34. Qd7 {[%clk 0:00:10]} 1-0

[Event "Late-Titled-Tuesday-Blitz-May-07-2024"]
[Site "Chess.com"]
[Date "2024.05.07"]
[Round "7"]
[White "CarrotsandPizza"]
[Black "Eloist"]
[Result "0-1"]
[WhiteElo "2573"]
[BlackElo "2429"]
[TimeControl "180+1"]
[EndTime "15:16:57 PDT"]
[Termination "Eloist won by checkmate"]

1. e4 {[%clk 0:03:00.9]} 1... e6 {[%clk 0:02:54.9]} 2. d4 {[%clk 0:03:00.3]}
2... d5 {[%clk 0:02:54.4]} 3. Nc3 {[%clk 0:03:00.5]} 3... Nf6 {[%clk 0:02:53.7]}
4. e5 {[%clk 0:03:00.8]} 4... Nfd7 {[%clk 0:02:53.7]} 5. f4 {[%clk 0:03:01.2]}
5... c5 {[%clk 0:02:54.3]} 6. Nf3 {[%clk 0:03:01.4]} 6... Nc6 {[%clk 0:02:54.8]}
7. Be3 {[%clk 0:03:01.2]} 7... a6 {[%clk 0:02:54.7]} 8. Qd2 {[%clk 0:03:01.2]}
8... b5 {[%clk 0:02:54.8]} 9. Be2 {[%clk 0:03:00.4]} 9... Qb6 {[%clk 0:02:53.4]}
10. Nd1 {[%clk 0:02:56.9]} 10... b4 {[%clk 0:02:51.8]} 11. a3 {[%clk 0:02:51.5]}
11... bxa3 {[%clk 0:02:50.5]} 12. bxa3 {[%clk 0:02:48.6]} 12... cxd4 {[%clk
0:02:44.9]} 13. Nxd4 {[%clk 0:02:48.4]} 13... Bc5 {[%clk 0:02:33.8]} 14. c3
{[%clk 0:02:47]} 14... O-O {[%clk 0:02:20.2]} 15. O-O {[%clk 0:02:44.6]} 15...
a5 {[%clk 0:02:02.7]} 16. Nb2 {[%clk 0:02:41.7]} 16... Bxd4 {[%clk 0:01:54]} 17.
cxd4 {[%clk 0:02:40.2]} 17... Ba6 {[%clk 0:01:49.2]} 18. Nd3 {[%clk 0:02:39.9]}
18... Nxd4 {[%clk 0:01:32.4]} 19. f5 {[%clk 0:02:17]} 19... Nb3 {[%clk 0:01:17]}
20. Bxb6 {[%clk 0:01:59.4]} 20... Nxd2 {[%clk 0:01:16.8]} 21. Rfd1 {[%clk
0:01:59.4]} 21... Nxb6 {[%clk 0:01:01.3]} 22. Rxd2 {[%clk 0:01:58.3]} 22... Nc4
{[%clk 0:00:56.4]} 23. Rda2 {[%clk 0:01:50.1]} 23... exf5 {[%clk 0:00:50.2]} 24.
Nf4 {[%clk 0:01:45.6]} 24... Nxe5 {[%clk 0:00:46.9]} 25. Nxd5 {[%clk 0:01:38.3]}
25... Bxe2 {[%clk 0:00:43]} 26. Ne7+ {[%clk 0:01:38.4]} 26... Kh8 {[%clk
0:00:42.1]} 27. Rxe2 {[%clk 0:01:38.9]} 27... f6 {[%clk 0:00:35.6]} 28. Nxf5
{[%clk 0:01:38.4]} 28... Rfd8 {[%clk 0:00:30.7]} 29. h3 {[%clk 0:01:38.6]} 29...
g6 {[%clk 0:00:24.3]} 30. Ng3 {[%clk 0:01:30]} 30... Rd3 {[%clk 0:00:19.9]} 31.
Ne4 {[%clk 0:01:30.1]} 31... Kg7 {[%clk 0:00:19.6]} 32. Rc2 {[%clk 0:01:23.8]}
32... Rad8 {[%clk 0:00:19.4]} 33. Rc5 {[%clk 0:01:21.6]} 33... R3d5 {[%clk
0:00:18.7]} 34. Rc6 {[%clk 0:01:20.4]} 34... Rd1+ {[%clk 0:00:17.7]} 35. Rxd1
{[%clk 0:01:19.3]} 35... Rxd1+ {[%clk 0:00:18.6]} 36. Kh2 {[%clk 0:01:17.4]}
36... Nxc6 {[%clk 0:00:16.2]} 37. Nc3 {[%clk 0:01:12.9]} 37... Rc1 {[%clk
0:00:16.2]} 38. Nb5 {[%clk 0:01:11.7]} 38... Ra1 {[%clk 0:00:16.5]} 39. Kg3
{[%clk 0:01:10.9]} 39... Kf7 {[%clk 0:00:17.1]} 40. Kf4 {[%clk 0:01:10.9]} 40...
Ke6 {[%clk 0:00:17.7]} 41. Ke4 {[%clk 0:01:11.2]} 41... f5+ {[%clk 0:00:17.5]}
42. Kd3 {[%clk 0:01:07]} 42... Ra2 {[%clk 0:00:17.5]} 43. g3 {[%clk 0:01:06.7]}
43... Rg2 {[%clk 0:00:17.1]} 44. Kc4 {[%clk 0:01:07.1]} 44... Rxg3 {[%clk
0:00:17.1]} 45. Kc5 {[%clk 0:01:08]} 45... Ne5 {[%clk 0:00:15.8]} 46. Nd4+
{[%clk 0:01:04.9]} 46... Kf6 {[%clk 0:00:15.2]} 47. h4 {[%clk 0:01:00]} 47... f4
{[%clk 0:00:15.2]} 48. Ne2 {[%clk 0:00:49.4]} 48... Rxa3 {[%clk 0:00:11.1]} 49.
Nxf4 {[%clk 0:00:49.2]} 49... Nd3+ {[%clk 0:00:11.4]} 50. Nxd3 {[%clk
0:00:45.2]} 50... Rxd3 {[%clk 0:00:12.3]} 51. Kb5 {[%clk 0:00:46]} 51... Rh3
{[%clk 0:00:11.6]} 52. Kxa5 {[%clk 0:00:46.1]} 52... Rxh4 {[%clk 0:00:12.1]} 53.
Kb5 {[%clk 0:00:47]} 53... Re4 {[%clk 0:00:11.9]} 54. Kc5 {[%clk 0:00:47.9]}
54... Re5+ {[%clk 0:00:12.4]} 55. Kd6 {[%clk 0:00:48]} 55... h5 {[%clk
0:00:13.3]} 56. Kd7 {[%clk 0:00:48.5]} 56... h4 {[%clk 0:00:14.2]} 57. Kd6
{[%clk 0:00:49.4]} 57... h3 {[%clk 0:00:15.1]} 58. Kd7 {[%clk 0:00:50.3]} 58...
h2 {[%clk 0:00:16]} 59. Kd6 {[%clk 0:00:51.2]} 59... h1=Q {[%clk 0:00:16.7]} 60.
Kd7 {[%clk 0:00:51.3]} 60... Qd1+ {[%clk 0:00:17.4]} 61. Kc8 {[%clk 0:00:51.4]}
61... Re2 {[%clk 0:00:18.1]} 62. Kb7 {[%clk 0:00:52.3]} 62... Rc2 {[%clk
0:00:18.8]} 63. Kb8 {[%clk 0:00:53.1]} 63... Qb1+ {[%clk 0:00:19]} 64. Ka8
{[%clk 0:00:54]} 64... Ra2# {[%clk 0:00:19.6]} 0-1

[Event "Late-Titled-Tuesday-Blitz-May-07-2024"]
[Site "Chess.com"]
[Date "2024.05.07"]
[Round "7"]
[White "MarkusRagger"]
[Black "Annawel"]
[Result "1-0"]
[WhiteElo "2821"]
[BlackElo "2994"]
[TimeControl "180+1"]
[EndTime "15:16:58 PDT"]
[Termination "MarkusRagger won by resignation"]

1. d4 {[%clk 0:02:44.7]} 1... Nf6 {[%clk 0:02:59.7]} 2. Nf3 {[%clk 0:02:44.8]}
2... e6 {[%clk 0:02:58.4]} 3. c4 {[%clk 0:02:44.2]} 3... d5 {[%clk 0:02:58.4]}
4. g3 {[%clk 0:02:43.8]} 4... Bb4+ {[%clk 0:02:50.8]} 5. Bd2 {[%clk 0:02:43]}
5... Be7 {[%clk 0:02:51.2]} 6. Bg2 {[%clk 0:02:37.6]} 6... O-O {[%clk
0:02:51.8]} 7. O-O {[%clk 0:02:37.5]} 7... Nbd7 {[%clk 0:02:49.9]} 8. Qc2 {[%clk
0:02:37.7]} 8... a5 {[%clk 0:02:46.4]} 9. Bf4 {[%clk 0:02:34.3]} 9... c6 {[%clk
0:02:45]} 10. h4 {[%clk 0:02:31.1]} 10... a4 {[%clk 0:02:44.2]} 11. a3 {[%clk
0:02:21.5]} 11... Qa5 {[%clk 0:02:42.5]} 12. Nbd2 {[%clk 0:02:21.3]} 12... h6
{[%clk 0:02:41.4]} 13. e4 {[%clk 0:02:19]} 13... b5 {[%clk 0:02:12.7]} 14. exd5
{[%clk 0:02:06.2]} 14... cxd5 {[%clk 0:02:08.7]} 15. c5 {[%clk 0:02:06]} 15...
Bb7 {[%clk 0:02:04.5]} 16. Ne5 {[%clk 0:01:24.4]} 16... Nxe5 {[%clk 0:02:02.6]}
17. Bxe5 {[%clk 0:01:25]} 17... Nd7 {[%clk 0:01:55.3]} 18. Nf3 {[%clk
0:01:18.2]} 18... b4 {[%clk 0:01:48.3]} 19. Qd2 {[%clk 0:01:00.5]} 19... bxa3
{[%clk 0:01:43.2]} 20. Qxa5 {[%clk 0:00:59.7]} 20... Rxa5 {[%clk 0:01:44.1]} 21.
Rxa3 {[%clk 0:00:59]} 21... f6 {[%clk 0:01:43.9]} 22. Bf4 {[%clk 0:00:57]} 22...
e5 {[%clk 0:01:43.5]} 23. dxe5 {[%clk 0:00:52.4]} 23... Nxc5 {[%clk 0:01:35.4]}
24. exf6 {[%clk 0:00:49.7]} 24... Bxf6 {[%clk 0:01:31.3]} 25. Be5 {[%clk
0:00:47.3]} 25... Rb5 {[%clk 0:01:26.2]} 26. Rc1 {[%clk 0:00:40.2]} 26... Be7
{[%clk 0:00:50.8]} 27. Re3 {[%clk 0:00:32.4]} 27... Ne4 {[%clk 0:00:39.6]} 28.
Rc7 {[%clk 0:00:23.4]} 28... Bf6 {[%clk 0:00:38.3]} 29. Bxf6 {[%clk 0:00:18.5]}
29... Rxf6 {[%clk 0:00:38.3]} 30. Ne5 {[%clk 0:00:18.4]} 30... Rxb2 {[%clk
0:00:35.2]} 31. f4 {[%clk 0:00:15.1]} 31... Ra6 {[%clk 0:00:28.2]} 32. Ra3
{[%clk 0:00:13.4]} 32... Rb3 {[%clk 0:00:26.1]} 33. Rxb3 {[%clk 0:00:12.9]}
33... axb3 {[%clk 0:00:24.5]} 34. Rxb7 {[%clk 0:00:13.5]} 34... Ra3 {[%clk
0:00:12.4]} 35. Rb8+ {[%clk 0:00:12.4]} 35... Kh7 {[%clk 0:00:12.5]} 36. h5
{[%clk 0:00:12.9]} 36... Nf6 {[%clk 0:00:11.8]} 37. Ng6 {[%clk 0:00:12.2]} 37...
Nxh5 {[%clk 0:00:11.2]} 38. f5 {[%clk 0:00:12.9]} 38... Ra1+ {[%clk 0:00:05.1]}
39. Kh2 {[%clk 0:00:11.4]} 1-0

[Event "Late-Titled-Tuesday-Blitz-May-07-2024"]
[Site "Chess.com"]
[Date "2024.05.07"]
[Round "7"]
[White "KuzubovYuriy"]
[Black "Arek_pacitan"]
[Result "0-1"]
[WhiteElo "2946"]
[BlackElo "2761"]
[TimeControl "180+1"]
[EndTime "15:17:00 PDT"]
[Termination "Arek_pacitan won on time"]

1. d4 {[%clk 0:03:00.9]} 1... Nf6 {[%clk 0:02:59.7]} 2. c4 {[%clk 0:03:00.7]}
2... e6 {[%clk 0:03:00]} 3. Nf3 {[%clk 0:03:00.3]} 3... d5 {[%clk 0:02:56.4]} 4.
Nc3 {[%clk 0:03:00]} 4... Be7 {[%clk 0:02:54]} 5. cxd5 {[%clk 0:02:59.4]} 5...
exd5 {[%clk 0:02:54.9]} 6. Bf4 {[%clk 0:03:00]} 6... c6 {[%clk 0:02:52.8]} 7. e3
{[%clk 0:03:00.1]} 7... Bf5 {[%clk 0:02:52.6]} 8. Nh4 {[%clk 0:03:00.3]} 8...
Be6 {[%clk 0:02:52.4]} 9. Qc2 {[%clk 0:02:57.4]} 9... Nbd7 {[%clk 0:02:51.7]}
10. Nf3 {[%clk 0:02:53.6]} 10... h6 {[%clk 0:02:49]} 11. Bd3 {[%clk 0:02:51.9]}
11... O-O {[%clk 0:02:49]} 12. O-O {[%clk 0:02:50.4]} 12... Nh5 {[%clk
0:02:48.9]} 13. h3 {[%clk 0:02:49.8]} 13... Nxf4 {[%clk 0:02:45.2]} 14. exf4
{[%clk 0:02:50.7]} 14... Nf6 {[%clk 0:02:42.4]} 15. Rad1 {[%clk 0:02:46.6]}
15... b5 {[%clk 0:02:37.4]} 16. Rfe1 {[%clk 0:02:42.5]} 16... Rc8 {[%clk
0:02:36.6]} 17. Ne5 {[%clk 0:02:31.8]} 17... a6 {[%clk 0:02:19.5]} 18. Qe2
{[%clk 0:02:18]} 18... Bd6 {[%clk 0:02:14.8]} 19. Bb1 {[%clk 0:02:14.7]} 19...
Re8 {[%clk 0:02:01.9]} 20. Qd3 {[%clk 0:02:05.7]} 20... b4 {[%clk 0:01:23.9]}
21. Na4 {[%clk 0:02:02.3]} 21... Qa5 {[%clk 0:01:21.5]} 22. b3 {[%clk
0:01:53.2]} 22... Qb5 {[%clk 0:01:21.4]} 23. Qf3 {[%clk 0:01:42.6]} 23... c5
{[%clk 0:01:12.8]} 24. f5 {[%clk 0:01:27.1]} 24... Bd7 {[%clk 0:01:11.4]} 25.
Nxd7 {[%clk 0:01:26.5]} 25... Qxd7 {[%clk 0:01:09.3]} 26. Rxe8+ {[%clk
0:00:43.4]} 26... Qxe8 {[%clk 0:01:06.1]} 27. dxc5 {[%clk 0:00:21.4]} 27... Bxc5
{[%clk 0:01:07]} 28. Nxc5 {[%clk 0:00:18.7]} 28... Rxc5 {[%clk 0:01:06.1]} 29.
g3 {[%clk 0:00:18.6]} 29... Rc3 {[%clk 0:01:00.8]} 30. Qf4 {[%clk 0:00:18.1]}
30... a5 {[%clk 0:01:00.4]} 31. Bd3 {[%clk 0:00:15.6]} 31... Qc6 {[%clk
0:00:40.4]} 32. Qd4 {[%clk 0:00:12.8]} 32... Qc5 {[%clk 0:00:38]} 33. Qxc5
{[%clk 0:00:12.6]} 33... Rxc5 {[%clk 0:00:38.9]} 34. f4 {[%clk 0:00:09]} 34...
Kf8 {[%clk 0:00:36.8]} 35. Kf2 {[%clk 0:00:08.6]} 35... Nd7 {[%clk 0:00:35.9]}
36. Ke3 {[%clk 0:00:07.7]} 36... Ke7 {[%clk 0:00:35]} 37. g4 {[%clk 0:00:07.1]}
37... f6 {[%clk 0:00:31]} 38. h4 {[%clk 0:00:07.5]} 38... Rc3 {[%clk 0:00:29.9]}
39. g5 {[%clk 0:00:04.9]} 39... Nc5 {[%clk 0:00:28.5]} 40. Kd4 {[%clk
0:00:03.9]} 40... Kd6 {[%clk 0:00:26.1]} 0-1

[Event "Late-Titled-Tuesday-Blitz-May-07-2024"]
[Site "Chess.com"]
[Date "2024.05.07"]
[Round "7"]
[White "crescentmoon2411"]
[Black "Lennis93"]
[Result "1-0"]
[WhiteElo "2884"]
[BlackElo "2732"]
[TimeControl "180+1"]
[EndTime "15:17:02 PDT"]
[Termination "crescentmoon2411 won by checkmate"]

1. d4 {[%clk 0:02:56.2]} 1... Nf6 {[%clk 0:02:59.6]} 2. c4 {[%clk 0:02:54.7]}
2... e6 {[%clk 0:02:59.6]} 3. Nc3 {[%clk 0:02:51.8]} 3... d5 {[%clk 0:02:57.7]}
4. cxd5 {[%clk 0:02:51.4]} 4... exd5 {[%clk 0:02:57.7]} 5. Bg5 {[%clk
0:02:51.7]} 5... c6 {[%clk 0:02:53.5]} 6. e3 {[%clk 0:02:50.8]} 6... h6 {[%clk
0:02:52.1]} 7. Bh4 {[%clk 0:02:50.4]} 7... Bf5 {[%clk 0:02:50.5]} 8. Qf3 {[%clk
0:02:49.9]} 8... Bg6 {[%clk 0:02:38.5]} 9. Bxf6 {[%clk 0:02:49]} 9... gxf6
{[%clk 0:02:27.6]} 10. Nh3 {[%clk 0:02:44.2]} 10... Bb4 {[%clk 0:02:24]} 11. Rc1
{[%clk 0:02:34.4]} 11... Nd7 {[%clk 0:02:19.3]} 12. Nf4 {[%clk 0:02:32.7]} 12...
Be4 {[%clk 0:02:18]} 13. Qd1 {[%clk 0:02:31.2]} 13... Qa5 {[%clk 0:02:12.5]} 14.
Bd3 {[%clk 0:02:24.5]} 14... Qxa2 {[%clk 0:01:52.7]} 15. O-O {[%clk 0:02:23.7]}
15... Bxc3 {[%clk 0:01:52.1]} 16. Bxe4 {[%clk 0:02:03.1]} 16... Bxb2 {[%clk
0:01:48.5]} 17. Qc2 {[%clk 0:01:54.3]} 17... dxe4 {[%clk 0:01:42.1]} 18. Rb1
{[%clk 0:01:51.7]} 18... f5 {[%clk 0:01:39.6]} 19. Rxb2 {[%clk 0:01:51.2]} 19...
Qa6 {[%clk 0:01:38.5]} 20. Rfb1 {[%clk 0:01:27.6]} 20... Nb6 {[%clk 0:01:35.3]}
21. Qc5 {[%clk 0:01:10.7]} 21... O-O-O {[%clk 0:01:01.6]} 22. Qxf5+ {[%clk
0:01:06.6]} 22... Rd7 {[%clk 0:00:52.5]} 23. Qxe4 {[%clk 0:01:03.2]} 23... Nc4
{[%clk 0:00:44.7]} 24. Rc2 {[%clk 0:00:53.2]} 24... Nd6 {[%clk 0:00:33.9]} 25.
Qe5 {[%clk 0:00:46.1]} 25... Re8 {[%clk 0:00:33.1]} 26. Qc5 {[%clk 0:00:41.7]}
26... Ne4 {[%clk 0:00:30.5]} 27. Qb4 {[%clk 0:00:41.7]} 27... Rc7 {[%clk
0:00:14]} 28. h4 {[%clk 0:00:34.5]} 28... Nf6 {[%clk 0:00:11.6]} 29. Qb2 {[%clk
0:00:31.5]} 29... Qa5 {[%clk 0:00:09.3]} 30. Ra1 {[%clk 0:00:30.5]} 30... Qf5
{[%clk 0:00:08]} 31. Rxa7 {[%clk 0:00:28.9]} 31... Qg4 {[%clk 0:00:08]} 32. Rc1
{[%clk 0:00:22.7]} 32... Qxh4 {[%clk 0:00:07.6]} 33. d5 {[%clk 0:00:13.8]} 33...
Ng4 {[%clk 0:00:06.9]} 34. Ra8+ {[%clk 0:00:12.7]} 34... Kd7 {[%clk 0:00:06.6]}
35. dxc6+ {[%clk 0:00:12.8]} 35... bxc6 {[%clk 0:00:06.1]} 36. Rd1+ {[%clk
0:00:09.7]} 36... Ke7 {[%clk 0:00:06.5]} 37. Rxe8+ {[%clk 0:00:06.5]} 37... Kxe8
{[%clk 0:00:06.4]} 38. Qh8+ {[%clk 0:00:07.1]} 38... Ke7 {[%clk 0:00:05.7]} 39.
Qd8# {[%clk 0:00:07.8]} 1-0